fUSD/lending_fUSD_20240317
["ID","MTS","AMOUNT","RATE_DAILY","PERIOD"]
[319375323,1710707556406,-727.156709,0.000218,2]
[319375324,1710707556417,-727.156703,0.000218,2]
[319375325,1710707556426,-151.0,0.000218,2]
[319375326,1710707556436,-151.0,0.000218,2]
[319375327,1710707556446,-151.0,0.000218,2]
[319375328,1710707556454,-151.0,0.000218,2]
[319375329,1710707556463,-151.0,0.000218,2]
[319375330,1710707556473,-151.0,0.000218,2]
[319375331,1710707556482,-151.0,0.000218,2]
[319375332,1710707556491,-151.0,0.000218,2]
[319375333,1710707556705,-151.0,0.000218,2]
[319375334,1710707556715,-151.0,0.000218,2]
[319375335,1710707556725,-151.0,0.000218,2]
[319375336,1710707556735,-151.0,0.000218,2]
[319375337,1710707556744,-154.680947,0.000218,2]
[319375338,1710707556754,-189.707263,0.000218,2]
[319375339,1710707556763,-189.707263,0.000218,2]
[319375340,1710707556772,-189.707263,0.000218,2]
[319375341,1710707556782,-189.707263,0.000218,2]
[319375342,1710707556791,-189.707263,0.000218,2]
[319375343,1710707556800,-189.707263,0.000218,2]
[319375344,1710707556810,-189.707263,0.000218,2]
[319375345,1710707556820,-189.707263,0.000218,2]
[319375346,1710707556830,-189.707263,0.000218,2]
[319375347,1710707556839,-189.707263,0.000218,2]
[319375348,1710707556850,-189.707263,0.000218,2]
[319375349,1710707556860,-189.707263,0.000218,2]
[319375350,1710707556869,-152.452715,0.000218,2]
[319375351,1710707556879,-189.707263,0.000218,2]
[319375352,1710707556889,-189.707263,0.000218,2]
[319375353,1710707556898,-189.707263,0.000218,2]
[319375354,1710707556907,-189.707263,0.000218,2]
[319375355,1710707556917,-189.707263,0.000218,2]
[319375356,1710707556926,-189.707263,0.000218,2]
[319375357,1710707556935,-189.707263,0.000218,2]
[319375358,1710707556944,-189.707271,0.000218,2]
[319375359,1710707556953,-151.0,0.000218,2]
[319375360,1710707556962,-151.0,0.000218,2]
[319375361,1710707556971,-151.0,0.000218,2]
[319375362,1710707556980,-151.0,0.000218,2]
[319375363,1710707556990,-151.0,0.000218,2]
[319375364,1710707556998,-151.0,0.000218,2]
[319375365,1710707557008,-151.0,0.000218,2]
[319375366,1710707557017,-151.0,0.000218,2]
[319375367,1710707557026,-151.0,0.000218,2]
[319375368,1710707557035,-151.0,0.000218,2]
[319375369,1710707557044,-292.671302,0.000218,2]
[319375370,1710707557054,-1105.849896,0.000218,2]
[319375371,1710707557063,-1105.849896,0.000218,2]
[319375372,1710707557073,-1105.849896,0.000218,2]
[319375373,1710707557084,-1105.849896,0.000218,2]
[319375374,1710707557095,-1105.849896,0.000218,2]
[319375375,1710707557105,-1105.849896,0.000218,2]
[319375376,1710707557114,-1105.849896,0.000218,2]
[319375377,1710707557123,-1105.849896,0.000218,2]
[319375378,1710707557133,-1105.849896,0.000218,2]
[319375379,1710707557142,-1105.849896,0.000218,2]
[319375380,1710707557152,-1105.849896,0.000218,2]
[319375381,1710707557161,-1105.849896,0.000218,2]
[319375382,1710707557170,-1105.849896,0.000218,2]
[319375383,1710707557179,-151.0,0.000218,2]
[319375384,1710707557189,-1105.849896,0.000218,2]
[319375385,1710707557198,-1105.849896,0.000218,2]
[319375386,1710707557208,-1105.849896,0.000218,2]
[319375387,1710707557217,-151.0,0.000218,2]
[319375388,1710707557227,-151.0,0.000218,2]
[319375389,1710707557236,-1105.849896,0.000218,2]
[319375390,1710707557245,-151.0,0.000218,2]
[319375391,1710707557255,-1105.849896,0.000218,2]
[319375392,1710707557264,-151.0,0.000218,2]
[319375393,1710707557273,-1105.849896,0.000218,2]
[319375394,1710707557283,-151.0,0.000218,2]
[319375395,1710707557292,-1105.849894,0.000218,2]
[319375396,1710707557301,-151.0,0.000218,2]
[319375397,1710707557310,-151.0,0.000218,2]
[319375398,1710707557318,-151.0,0.000218,2]
[319375399,1710707557327,-151.0,0.000218,2]
[319375400,1710707557337,-151.0,0.000218,2]
[319375401,1710707557346,-151.0,0.000218,2]
[319375402,1710707557355,-151.0,0.000218,2]
[319375403,1710707557364,-151.0,0.000218,2]
[319375404,1710707557374,-151.0,0.000218,2]
[319375405,1710707557383,-151.0,0.000218,2]
[319375406,1710707557392,-151.0,0.000218,2]
[319375407,1710707557405,-151.0,0.000218,2]
[319375408,1710707557414,-151.0,0.000218,2]
[319375409,1710707557423,-151.0,0.000218,2]
[319375410,1710707557434,-151.0,0.000218,2]
[319375411,1710707557446,-151.0,0.000218,2]
[319375412,1710707557456,-151.0,0.000218,2]
[319375413,1710707557465,-272.876624,0.000218,2]
[319375414,1710707557474,-151.0,0.000218,2]
[319375415,1710707557484,-151.0,0.000218,2]
[319375416,1710707557493,-151.0,0.000218,2]
[319375417,1710707557503,-151.0,0.000218,2]
[319375418,1710707557512,-151.0,0.000218,2]
[319375419,1710707557521,-151.0,0.000218,2]
[319375420,1710707557532,-151.0,0.000218,2]
[319375421,1710707557541,-151.0,0.000218,2]
[319375422,1710707557551,-151.0,0.000218,2]
[319375423,1710707557560,-151.0,0.000218,2]
[319375424,1710707557570,-151.0,0.000218,2]
[319375425,1710707557579,-151.0,0.000218,2]
[319375426,1710707557589,-151.0,0.000218,2]
[319375427,1710707557598,-216.833535,0.000218,2]
[319375428,1710707557607,-151.0,0.000218,2]
[319375429,1710707557617,-151.0,0.000218,2]
[319375430,1710707557626,-157.605827,0.000218,2]
[319375431,1710707557636,-1218.133641,0.000218,2]
[319375432,1710707557645,-1218.133641,0.000218,2]
[319375433,1710707557654,-1218.133641,0.000218,2]
[319375434,1710707557663,-1218.133641,0.000218,2]
[319375435,1710707557672,-1218.133641,0.000218,2]
[319375436,1710707557681,-1218.133641,0.000218,2]
[319375437,1710707557690,-1218.133641,0.000218,2]
[319375438,1710707557699,-1218.133641,0.000218,2]
[319375439,1710707557708,-1218.133641,0.000218,2]
[319375440,1710707557717,-1218.133641,0.000218,2]
[319375441,1710707557726,-1218.133641,0.000218,2]
[319375442,1710707557736,-1218.133641,0.000218,2]
[319375443,1710707557745,-151.0,0.000218,2]
[319375444,1710707557754,-1218.133641,0.000218,2]
[319375445,1710707557763,-151.0,0.000218,2]
[319375446,1710707557773,-1218.133641,0.000218,2]
[319375447,1710707557781,-151.0,0.000218,2]
[319375448,1710707557791,-1218.133641,0.000218,2]
[319375449,1710707557800,-151.0,0.000218,2]
[319375450,1710707557810,-1218.133641,0.000218,2]
[319375451,1710707557819,-151.0,0.000218,2]
[319375452,1710707557829,-1218.133641,0.000218,2]
[319375453,1710707557838,-151.0,0.000218,2]
[319375454,1710707557847,-1218.133641,0.000218,2]
[319375455,1710707557857,-151.0,0.000218,2]
[319375456,1710707557866,-1218.133641,0.000218,2]
[319375457,1710707557876,-151.0,0.000218,2]
[319375458,1710707557885,-1218.133649,0.000218,2]
[319375459,1710707557894,-151.0,0.000218,2]
[319375460,1710707557903,-151.0,0.000218,2]
[319375461,1710707557912,-151.0,0.000218,2]
[319375462,1710707557921,-151.0,0.000218,2]
[319375463,1710707557930,-151.0,0.000218,2]
[319375464,1710707557938,-151.0,0.000218,2]
[319375465,1710707557947,-151.0,0.000218,2]
[319375466,1710707557956,-250.104607,0.000218,2]
[319375467,1710707557965,-250.104607,0.000218,2]
[319375468,1710707557974,-250.104607,0.000218,2]
[319375469,1710707557982,-250.104607,0.000218,2]
[319375470,1710707557991,-250.104607,0.000218,2]
[319375471,1710707558000,-250.104607,0.000218,2]
[319375472,1710707558009,-250.104607,0.000218,2]
[319375473,1710707558018,-250.104607,0.000218,2]
[319375474,1710707558027,-151.0,0.000218,2]
[319375475,1710707558036,-250.104607,0.000218,2]
[319375476,1710707558045,-151.0,0.000218,2]
[319375477,1710707558053,-250.104607,0.000218,2]
[319375478,1710707558062,-151.0,0.000218,2]
[319375479,1710707558071,-250.104607,0.000218,2]
[319375480,1710707558080,-151.0,0.000218,2]
[319375481,1710707558089,-250.104607,0.000218,2]
[319375482,1710707558098,-151.0,0.000218,2]
[319375483,1710707558107,-250.104607,0.000218,2]
[319375484,1710707558115,-151.0,0.000218,2]
[319375485,1710707558125,-250.104607,0.000218,2]
[319375486,1710707558133,-151.0,0.000218,2]
[319375487,1710707558142,-250.104607,0.000218,2]
[319375488,1710707558151,-151.0,0.000218,2]
[319375489,1710707558160,-250.104607,0.000218,2]
[319375490,1710707558169,-232.618744,0.000218,2]
[319375491,1710707558178,-250.104607,0.000218,2]
[319375492,1710707558186,-250.104607,0.000218,2]
[319375493,1710707558195,-250.104607,0.000218,2]
[319375494,1710707558205,-250.104602,0.000218,2]
[319375495,1710707558214,-151.0,0.000218,2]
[319375496,1710707558222,-151.0,0.000218,2]
[319375497,1710707558231,-151.0,0.000218,2]
[319375498,1710707558241,-151.0,0.000218,2]
[319375499,1710707558250,-244.567146,0.000218,2]
[319375500,1710707558259,-151.0,0.000218,2]
[319375501,1710707558268,-151.0,0.000218,2]
[319375502,1710707558277,-151.0,0.000218,2]
[319375503,1710707558286,-151.0,0.000218,2]
[319375504,1710707558295,-151.0,0.000218,2]
[319375505,1710707558304,-151.0,0.000218,2]
[319375506,1710707558313,-151.0,0.000218,2]
[319375507,1710707558322,-151.0,0.000218,2]
[319375508,1710707558331,-151.0,0.000218,2]
[319375509,1710707558340,-151.0,0.000218,2]
[319375510,1710707558349,-151.0,0.000218,2]
[319375511,1710707558358,-151.0,0.000218,2]
[319375512,1710707558368,-151.0,0.000218,2]
[319375513,1710707558377,-151.0,0.000218,2]
[319375514,1710707558386,-151.0,0.000218,2]
[319375515,1710707558397,-151.0,0.000218,2]
[319375516,1710707558408,-151.0,0.000218,2]
[319375517,1710707558418,-151.0,0.000218,2]
[319375518,1710707558442,-235.238265,0.000218,2]
[319375519,1710707558451,-499.732404,0.000218,2]
[319375520,1710707558460,-499.732404,0.000218,2]
[319375521,1710707558469,-499.732404,0.000218,2]
[319375522,1710707558479,-499.732404,0.000218,2]
[319375523,1710707558488,-499.732404,0.000218,2]
[319375524,1710707558498,-151.0,0.000218,2]
[319375525,1710707558507,-499.732404,0.000218,2]
[319375526,1710707558517,-151.0,0.000218,2]
[319375527,1710707558527,-499.732404,0.000218,2]
[319375528,1710707558537,-499.732404,0.000218,2]
[319375529,1710707558546,-499.732404,0.000218,2]
[319375530,1710707558555,-499.732404,0.000218,2]
[319375531,1710707558566,-499.732404,0.000218,2]
[319375532,1710707558575,-499.732404,0.000218,2]
[319375533,1710707558585,-499.732404,0.000218,2]
[319375534,1710707558593,-499.732404,0.000218,2]
[319375535,1710707558603,-499.732404,0.000218,2]
[319375536,1710707558612,-499.732404,0.000218,2]
[319375537,1710707558621,-499.732404,0.000218,2]
[319375538,1710707558630,-499.732404,0.000218,2]
[319375539,1710707558639,-499.732404,0.000218,2]
[319375540,1710707558648,-499.732395,0.000218,2]
[319375541,1710707558658,-151.0,0.000218,2]
[319375542,1710707558667,-151.0,0.000218,2]
[319375543,1710707558677,-151.0,0.000218,2]
[319375544,1710707558686,-151.0,0.000218,2]
[319375545,1710707558694,-151.0,0.000218,2]
[319375546,1710707558703,-151.0,0.000218,2]
[319375547,1710707558712,-151.0,0.000218,2]
[319375548,1710707558721,-151.0,0.000218,2]
[319375549,1710707558730,-151.0,0.000218,2]
[319375550,1710707558739,-151.0,0.000218,2]
[319375551,1710707558748,-151.0,0.000218,2]
[319375552,1710707558757,-151.0,0.000218,2]
[319375553,1710707558766,-151.0,0.000218,2]
[319375554,1710707558775,-151.0,0.000218,2]
[319375555,1710707558784,-151.0,0.000218,2]
[319375556,1710707558793,-151.0,0.000218,2]
[319375557,1710707558802,-151.0,0.000218,2]
[319375558,1710707558811,-151.0,0.000218,2]
[319375559,1710707558819,-151.0,0.000218,2]
[319375560,1710707558828,-151.0,0.000218,2]
[319375561,1710707558837,-252.979879,0.000218,2]
[319375562,1710707558847,-235.907929,0.000218,2]
[319375563,1710707558856,-235.907929,0.000218,2]
[319375564,1710707558865,-235.907929,0.000218,2]
[319375565,1710707558874,-235.907929,0.000218,2]
[319375566,1710707558883,-235.907929,0.000218,2]
[319375567,1710707558892,-235.907929,0.000218,2]
[319375568,1710707558902,-235.907929,0.000218,2]
[319375569,1710707558911,-235.907929,0.000218,2]
[319375570,1710707558921,-235.907929,0.000218,2]
[319375571,1710707558930,-235.90792,0.000218,2]
[319375572,1710707558939,-718.49482724,0.00021801,2]
[319375573,1710707558948,-1779.07465807,0.00021801,2]
[319375574,1710707558957,-336.03108786,0.00021801,2]
[319375575,1710707558967,-11465.49567889,0.00021801,2]
[319375576,1710707558977,-13000.0,0.00021801,2]
[319375577,1710707558987,-60000.0,0.00021801,2]
[319375578,1710707558997,-13600.41509782,0.00021801,2]
[319375579,1710707559007,-213.2388208,0.00021801,2]
[319375580,1710707559016,-121156.90972827,0.00021801,2]
[319375581,1710707559027,-2095.6,0.00021801,2]
[319375582,1710707559037,-1470.50978142,0.00021801,2]
[319375583,1710707559046,-10347.52172318,0.00021801,2]
[319375584,1710707559057,-5014.35526367,0.00021801,2]
[319375585,1710707559067,-2643.97309248,0.00021801,2]
[319375586,1710707559077,-2373.76533352,0.00021801,2]
[319375587,1710707559087,-5422.87147866,0.00021801,2]
[319375588,1710707559098,-3141.13495962,0.00021801,2]
[319375589,1710707559107,-10074.39125286,0.00021801,2]
[319375590,1710707559116,-22050.48680884,0.00021801,2]
[319375591,1710707559126,-14632.98503421,0.00021801,2]
[319375592,1710707559135,-1033.57735549,0.00021801,2]
[319375593,1710707559144,-5772.51856282,0.00021801,2]
[319375594,1710707559154,-174.75419142,0.00021801,2]
[319375595,1710707559163,-841.20662422,0.00021801,2]
[319375596,1710707559173,-1011.02532425,0.00021801,2]
[319375597,1710707559182,-184.63926291,0.00021801,2]
[319375598,1710707559191,-89640.0,0.00021801,2]
[319375599,1710707559200,-8929.52390618,0.00021801,2]
[319375600,1710707559209,-1268.0599143,0.00021801,2]
[319375601,1710707559219,-4780.73566005,0.00021801,2]
[319375602,1710707559229,-4192.00705925,0.00021801,2]
[319375603,1710707559239,-21938.04065,0.00021801,2]
[319375604,1710707559248,-83000.0,0.00021801,2]
[319375605,1710707559257,-12417.26394969,0.00021801,2]
[319375606,1710707559266,-1858.98829424,0.00021801,2]
[319375607,1710707559276,-643.0,0.00021801,2]
[319375608,1710707559285,-938.61084133,0.00021801,2]
[319375609,1710707559294,-554.39474512,0.00021801,2]
[319375610,1710707559303,-1778.17163591,0.00021801,2]
[319375611,1710707559313,-16206.98157141,0.00021801,2]
[319375612,1710707559322,-168.93503493,0.00021801,2]
[319375613,1710707559332,-550.0,0.00021801,2]
[319375614,1710707559341,-975.38302607,0.00021801,2]
[319375615,1710707559350,-10364.16231052,0.00021801,2]
[319375616,1710707559359,-163990.74245762,0.00021801,2]
[319375617,1710707559369,-14470.75220742,0.00021801,2]
[319375618,1710707559378,-6000.0,0.00021801,2]
[319375619,1710707559391,-107241.29872539,0.00021801,2]
[319375620,1710707559401,-14282.51310598,0.00021801,2]
[319375621,1710707559410,-10267.79077228,0.00021801,2]
[319375622,1710707559420,-14160.24917508,0.00021801,2]
[319375623,1710707559430,-545.18318705,0.00021801,2]
[319375624,1710707559440,-150.0,0.00021801,2]
[319375625,1710707559450,-18224.03176019,0.00021801,2]
[319375626,1710707559459,-632.28406059,0.00021801,2]
[319375627,1710707559469,-606.44510938,0.00021801,2]
[319375628,1710707559479,-207.94179122,0.00021801,2]
[319375629,1710707559488,-148013.90383786,0.00021801,2]
[319375630,1710707559497,-7130.31572667,0.00021801,2]
[319375631,1710707559507,-12062.9745647,0.00021801,2]
[319375632,1710707559516,-20568.21637431,0.00021801,2]
[319375633,1710707559525,-2500.0,0.00021801,2]
[319375634,1710707559535,-560.93848982,0.00021801,2]
[319375635,1710707559544,-2304.07731486,0.00021801,2]
[319375636,1710707559553,-26911.59124,0.00021801,2]
[319375637,1710707559563,-6602.84043636,0.00021801,2]
[319375638,1710707559572,-10160.12335217,0.00021801,2]
[319375639,1710707559581,-883.5959931,0.00021801,2]
[319375640,1710707559591,-26702.37730895,0.00021801,2]
[319375641,1710707559600,-9228.22495861,0.00021801,2]
[319375642,1710707559609,-466.30337237,0.00021801,2]
[319375643,1710707559619,-383.21583126,0.00021801,2]
[319375644,1710707559628,-14734.42783723,0.00021801,2]
[319375645,1710707559639,-21271.36253263,0.00021801,2]
[319375646,1710707559648,-315.43960164,0.00021801,2]
[319375647,1710707559658,-31366.10675876,0.00021801,2]
[319375648,1710707559679,-1768.50699386,0.00021801,2]
[319375649,1710707559690,-1089.106005,0.00021801,2]
[319375650,1710707559731,-952.86685494,0.00021801,2]
[319375651,1710707559743,-54625.00000028,0.00021801,2]
[319375652,1710707559753,-571.20739984,0.00021801,2]
[319375653,1710707559764,-366.05064,0.00021801,2]
[319375654,1710707559775,-6879.0,0.00021801,2]
[319375655,1710707559786,-1122.49536371,0.00021801,2]
[319375656,1710707653975,-155.0,0.00013996,2]
[319375657,1710707653996,-261.86121602,0.00013997,2]
[319375658,1710707654016,-1238.09469289,0.00013998,2]
[319375659,1710707654035,-704.00556808,0.00013998,2]
[319375660,1710707654055,-261.86121602,0.00013998,2]
[319375661,1710707654074,-1238.09469289,0.00013998,2]
[319375662,1710707654095,-155.5804431,0.000149,2]
[319375663,1710707654114,-1378.92810685,0.00014999,2]
[319375664,1710707654134,-19368.35751359,0.00015,2]
[319375665,1710707654153,-3968.55965813,0.00015,2]
[319375666,1710707654174,-10429.72018833,0.00015,2]
[319375667,1710707654194,-3968.55965813,0.00015,2]
[319375668,1710707654216,-155.0,0.00015,2]
[319375669,1710707654235,-5000.0,0.00015,2]
[319375670,1710707654255,-12473.34436896,0.00015,2]
[319375671,1710707654274,-5000.0,0.00015,2]
[319375672,1710707654293,-12473.34436896,0.00015,2]
[319375673,1710707654312,-3968.55965813,0.00015134,2]
[319375674,1710707654333,-150.0,0.00015134,2]
[319375675,1710707654353,-11071.065,0.00015135,2]
[319375676,1710707654373,-155.58044309,0.00015188,2]
[319375677,1710707654394,-12473.34436896,0.00015199,2]
[319375678,1710707654415,-1465.79299595,0.000152,2]
[319375679,1710707654438,-1465.79299595,0.000152,2]
[319375680,1710707654459,-173.42080082,0.00015285,2]
[319375681,1710707654483,-431.92864212,0.00015285,2]
[319375682,1710707654505,-307.27899608,0.00015285,2]
[319375683,1710707654525,-155.18911538,0.00015285,2]
[319375684,1710707654546,-254.74830421,0.00015285,2]
[319375685,1710707654567,-119696.98698736,0.00015287,2]
[319375688,1710708013994,-261.86121602,0.00012679,2]
[319375689,1710708014021,-423.05,0.0001268,2]
[319375690,1710708014046,-1238.09469289,0.00013996,2]
[319375691,1710708014068,-1391.2102795,0.00014237,2]
[319375692,1710708014090,-1391.2102795,0.00014424,2]
[319375693,1710708014111,-408.71,0.00014525,2]
[319375694,1710708014135,-600.0,0.0001467,2]
[319375695,1710708014155,-1391.2102795,0.00014711,2]
[319375696,1710708014176,-240.0,0.00014752,2]
[319375697,1710708014197,-1391.2102795,0.00014853,2]
[319375698,1710708014218,-423.05,0.00014943,2]
[319375699,1710708014239,-499.99,0.00014943,2]
[319375700,1710708014259,-3548.43126791,0.00015,2]
[319375701,1710708014280,-14046.83614553,0.00015,2]
[319375702,1710708014301,-5000.0,0.00015,2]
[319375703,1710708014321,-550.0,0.00015,3]
[319375704,1710708028105,-467.38,0.00015098,2]
[319375705,1710708028126,-171.04031856,0.000151,2]
[319375706,1710708028149,-2500.0,0.00015187,2]
[319375707,1710708028170,-11154.45,0.00015192,2]
[319375708,1710708028191,-5000.0,0.00015199,2]
[319375709,1710708028213,-1465.79299595,0.000152,2]
[319375710,1710708028242,-10500.0,0.000152,2]
[319375711,1710708028263,-5899.47224514,0.000152,2]
[319375713,1710708512480,-261.86121602,0.00012618,2]
[319375714,1710708512502,-380.74,0.00012619,2]
[319375715,1710708512522,-351.05,0.00014426,2]
[319375716,1710708512543,-808.0,0.00014616,2]
[319375717,1710708512565,-150.0,0.00014675,2]
[319375718,1710708512586,-1391.2102795,0.00014882,2]
[319375719,1710708512607,-380.74,0.00014883,2]
[319375720,1710708521611,-150.0,0.00015068,2]
[319375721,1710708521631,-854.00470448,0.00015099,2]
[319375730,1710708631934,-250.0,0.00014739,2]
[319375731,1710708631944,-250.0,0.00014793,2]
[319375732,1710708631953,-204.35,0.00014851,2]
[319375733,1710708631965,-4145.99529552,0.00015099,2]
[319375734,1710708631974,-155.0,0.00015099,2]
[319375735,1710708631984,-321.69071645,0.00015099,2]
[319375736,1710708631994,-1029.63976993,0.00015099,2]
[319375737,1710708632003,-502.0461,0.000151,2]
[319375738,1710708632012,-2210.9428,0.000151,2]
[319375739,1710708632023,-5000.0,0.000151,2]
[319375740,1710708632033,-1000.0,0.000151,3]
[319375741,1710708632044,-609.0,0.000151,2]
[319375742,1710708632054,-254.1727,0.000151,2]
[319375743,1710708632063,-2500.0,0.000151,2]
[319375744,1710708632072,-3700.502,0.000151,2]
[319375745,1710708632081,-572.42482299,0.000151,2]
[319375746,1710708632090,-499.99,0.000151,2]
[319375747,1710708632099,-1000.0,0.000151,2]
[319375748,1710708632108,-204.54628221,0.000151,2]
[319375749,1710708632118,-379.5774,0.000151,2]
[319375750,1710708632127,-1391.2102795,0.0001517,2]
[319375751,1710708632136,-155.0,0.00015198,2]
[319375752,1710708632145,-156.31254935,0.00015198,2]
[319375753,1710708632154,-312.50723452,0.00015199,2]
[319375754,1710708632163,-2419187.08824312,0.000152,2]
[319375755,1710708632198,-1357.62885533,0.000152,2]
[319375756,1710708632209,-2884.78192391,0.000152,2]
[319375757,1710708632242,-11416.71755803,0.000152,2]
[319375758,1710708632253,-408.76832203,0.000152,2]
[319375759,1710708632265,-619.57938856,0.000152,2]
[319375786,1710708637978,-341734.54421378,0.000152,2]
[319375787,1710708637987,-5651.17507773,0.000152,2]
[319375788,1710708637996,-1465.79299595,0.000152,2]
[319375789,1710708638006,-40994.964,0.000152,2]
[319375790,1710708638015,-459.21,0.00015244,2]
[319375791,1710708638024,-842.29,0.00015244,2]
[319375792,1710708638033,-155.51784382,0.00015284,2]
[319375793,1710708638042,-1605.8196191,0.00015285,2]
[319375794,1710708638051,-1808.93661539,0.00015285,2]
[319375795,1710708638060,-704.8007105,0.00015286,2]
[319375796,1710708638072,-5109.51955468,0.00015286,2]
[319375797,1710708638081,-11123.409,0.00015286,2]
[319375798,1710708638091,-1558059.82214288,0.00015287,2]
[319375799,1710708638099,-245000.0,0.00015289,2]
[319375800,1710708638108,-247.72798089,0.000153,2]
[319375801,1710708638118,-247.72798089,0.000153,2]
[319375802,1710708638127,-247.72798089,0.000153,2]
[319375803,1710708638136,-1000.0,0.000155,2]
[319375804,1710708638146,-1391.2102795,0.00015541,2]
[319375805,1710708638157,-1391.2102795,0.00015621,2]
[319375806,1710708638168,-970.40841556,0.00015716,2]
[319375807,1710708638178,-970.40841556,0.00015716,2]
[319375808,1710708638187,-1000.0,0.00016,3]
[319375809,1710708638197,-1000.0,0.00016,2]
[319375810,1710708638206,-1391.2102795,0.00016047,2]
[319375811,1710708638216,-1391.2102795,0.00016183,2]
[319375812,1710708638226,-572.42482296,0.00016282,2]
[319375813,1710708638235,-500.0,0.00016438,2]
[319375814,1710708638245,-4000.0,0.00016438,2]
[319375815,1710708638254,-483.49,0.00016438,2]
[319375816,1710708638263,-808.0,0.00016443,2]
[319375817,1710708638271,-1216.46329409,0.000165,2]
[319375818,1710708638282,-1000.0,0.000165,3]
[319375819,1710708638292,-600.0,0.00016504,2]
[319375820,1710708638302,-240.0,0.00016596,2]
[319375821,1710708638312,-1391.2102795,0.00016656,2]
[319375822,1710708638323,-1391.2102795,0.00016956,2]
[319375823,1710708638333,-600.0,0.00017,3]
[319375824,1710708638343,-150.0,0.00017121,2]
[319375825,1710708638352,-380.74,0.00017147,2]
[319375826,1710708638362,-1391.2102795,0.00017179,2]
[319375827,1710708638371,-1378.0,0.00017236,2]
[319375829,1710708638380,-959.0,0.00017236,2]
[319375831,1710708638389,-2560.0,0.00017236,2]
[319375833,1710708638398,-536.0,0.00017236,2]
[319375835,1710708638407,-1227.0,0.00017236,2]
[319375837,1710708638416,-457.0,0.00017236,2]
[319375838,1710708638425,-1264.0,0.00017236,2]
[319375840,1710708638433,-603.0,0.00017236,2]
[319375842,1710708638442,-278.0,0.00017236,2]
[319375844,1710708638451,-1250.0,0.00017236,2]
[319375846,1710708638460,-432.0,0.00017236,2]
[319375848,1710708638469,-800.0,0.00017236,2]
[319375850,1710708638478,-1136.0,0.00017236,2]
[319375852,1710708638487,-3000.0,0.00017236,2]
[319375854,1710708638496,-150.0,0.00017236,2]
[319375856,1710708638505,-357.0,0.00017236,2]
[319375858,1710708638514,-1458.0,0.00017236,2]
[319375860,1710708638523,-150.0,0.00017236,2]
[319375862,1710708638532,-2419.0,0.00017236,2]
[319375864,1710708638541,-1623.0,0.00017236,2]
[319375866,1710708638550,-213.0,0.00017236,2]
[319375868,1710708638560,-42878.0,0.00017236,2]
[319375870,1710708638570,-4762.0,0.00017236,2]
[319375872,1710708638579,-2428.0,0.00017236,2]
[319375875,1710708638588,-5668.0,0.00017236,2]
[319375877,1710708638601,-1044.0,0.00017236,2]
[319375879,1710708638611,-200.0,0.00017258,2]
[319375881,1710708638620,-800.0,0.00017258,2]
[319375883,1710708638630,-200.0,0.00017258,2]
[319375885,1710708638639,-500.0,0.00017258,2]
[319375887,1710708638648,-200.0,0.00017258,2]
[319375889,1710708638657,-1391.2102795,0.00017264,2]
[319375891,1710708638667,-151.27358263,0.00017311,2]